Cogmind - Beta 17 @@@ ROGUE MODE // 2026.08.02 @ 19:51:27 Player: CONM Result: Destroyed by G-67 Veteran with Plasma Rifle Performance ------------- Evolutions (4) 2000 Regions Visited (5) 1000 Robots Destroyed (13) 65 Value Destroyed (377) 377 Prototype IDs (7) 140 Alien Tech Used (0) 0 Bonus (800) 800 TOTAL SCORE: 4382 Bonus ------- Registered with UFD 300 Met Optimus in HQ 500 Cogmind --------- Core Integrity 0/850 Matter 300/300 Energy 98/100 System Corruption 0% Temperature Cool (12) Movement Core (50) Location -6/Lower Caves Parts ------- > --- POWER (1) -------- (None) > --- PROPULSION (4) --- (None) > --- UTILITY (8) ------ (None) > --- WEAPON (2) ------- (None) > --- INVENTORY (5) ---- Light Treads Improved Heat Sink Tractor Beam EM Pulse Gun Companion Sword Peak State ------------ > --- POWER ------------ Light Deuterium Engine > --- PROPULSION ------- Improved Hover Unit Improved Hover Unit Improved Gravmag System > --- UTILITY ---------- Small Storage Unit Triangulator Improved Signal Interpreter Improved Actuator Array Weapon Shielding A0-MCA's Component Scanner > --- WEAPON ----------- Companion Sword > --- INVENTORY -------- Light Treads Improved Heat Sink Medium Storage Unit Relay Coupler [Specialist] Tractor Beam EM Pulse Gun [Rating: 43] Favorites ----------- Power Light Ion Engine Engine Light Ion Engine Power Core Light Nuclear Core Propulsion Light Treads Treads Light Treads Wheel Armored Wheel Hover Unit Improved Gravmag System Utility Seismic Detector Device Seismic Detector Storage Huge Storage Unit Processor Improved Signal Interpreter Protection Improved Utility Shielding Weapon EM Pulse Gun Energy Gun EM Pulse Gun Slashing Weapon Companion Sword Build | -11 -10 -10 -9 -6 -6 ------- Run | Yrd Mat Sub Scr Fac Low Slots Evolved 8 | . . . . 8 . Power . | . . . . . . Propulsion 2 | . . . . 2 . Utility 6 | . . . . 6 . Weapon . | . . . . . . Parts Attached 25 | 7 . . 2 16 . Power 4 | 1 . . . 3 . Engine 3 | 1 . . . 2 . Core 1 | . . . . 1 . Reactor . | . . . . . . Propulsion 8 | 2 . . 1 5 . Treads 2 | 2 . . . . . Leg . | . . . . . . Wheel 2 | . . . 1 1 . Hover 4 | . . . . 4 . Flight . | . . . . . . Utility 10 | 2 . . 1 7 . Device 4 | 1 . . . 3 . Storage 2 | 1 . . 1 . . Processor 2 | . . . . 2 . Hackware . | . . . . . . Protection 2 | . . . . 2 . Artifact . | . . . . . . Weapon 3 | 2 . . . 1 . Energy Gun 2 | 2 . . . . . Energy Cannon . | . . . . . . Ballistic Gun . | . . . . . . Ballistic Cannon . | . . . . . . Launcher . | . . . . . . Special Weapon . | . . . . . . Impact Weapon . | . . . . . . Slashing Weapon 1 | . . . . 1 . Piercing Weapon . | . . . . . . Special Melee Weapon . | . . . . . . Unidentified Prototypes 1 | . . . . 1 . Parts Lost 12 | . . . . 9 3 Power 3 | . . . . 3 . Propulsion 7 | . . . . 4 3 Utility 2 | . . . . 2 . Weapon . | . . . . . . Highest Loss Streak 5 | . . . . 5 2 To Critical Strikes . | . . . . . . Average Backups 11 | . 3 7 11 13 5 Power . | . . 1 1 . . Propulsion . | . . . . 1 1 Utility 8 | . 2 6 9 8 2 Weapon 1 | . . . 1 2 1 Tool/Special . | . . . . . . Unused Backups 10 | . . . 1 5 4 Power . | . . . . . . Propulsion . | . . . . . . Utility 9 | . . . 1 4 4 Weapon 1 | . . . . 1 . Tool/Special . | . . . . . . Average Slot Usage (%) 96 | . 100 100 100 54 23 Engine 13 | . 14 14 14 3 2 Treads 19 | . 28 28 20 3 . Wheel 7 | . . . 7 3 . Device 13 | . 14 14 14 12 4 Storage 13 | . 14 14 14 6 2 Energy Gun 26 | . 28 28 28 . . Peak Build Rating 43 | 7 8 8 12 43 43 Average Rating 11 | 5 7 8 10 25 13 On Entrance 13 | . 7 8 8 12 43 Avg Prop Armor Cover (%) 11 | . . . 11 15 . Naked Turns 154 | . . . . . 154 Heaviest Build 91 | 13 13 13 88 91 22 Greatest Support 40 | 40 40 40 40 28 24 Greatest Overweight (x) 29 | . . . 7 29 1 Average Overweight (x) 4 | . . . 4 4 . Largest Inventory Capacity 25 | 8 8 8 25 25 8 Average Capacity 21 | 7 8 8 23 19 5 Most Carried 17 | . 7 7 14 17 8 Average Carried 11 | . 3 7 11 13 5 Final Capacity 25 | 8 8 8 25 8 5 Final Carried 14 | . 7 7 14 6 5 Class Distribution -------------------- 100% | Mutant Dominant Class ---------------- Mutant | -10/Materials Mutant | -10/Subcaves Mutant | -9/Scraptown Mutant | -6/Factory Mutant | -6/Lower Caves Resources | -11 -10 -10 -9 -6 -6 ----------- Run | Yrd Mat Sub Scr Fac Low Matter Collected 410 | 270 . . 20 120 . Remotely . | . . . . . . Salvage Created 579 | 25 110 . . 444 . Parts 33 | 4 6 . . 23 . Haulers Intercepted . | . . . . . . Recyclers Shooed . | . . . . . . Parts Field Recycled . | . . . . . . Retrieved Matter . | . . . . . . Parts Self-Destructed 2 | . . 2 . . . Prevented . | . . . . . . Parts Restored . | . . . . . . Kills | -11 -10 -10 -9 -6 -6 ------- Run | Yrd Mat Sub Scr Fac Low Combat Hostiles Destroyed 8 | . 2 . . 6 . Melee 6 | . . . . 6 . Guns 1 | . 1 . . . . AOE 1 | . 1 . . . . Classes Destroyed 6 | 1 1 . . 4 . Worker 1 | . . . . 1 . Tunneler 1 | 1 . . . . . Recycler 1 | . . . . 1 . Watcher 2 | . . . . 2 . Swarmer 4 | . . . . 4 . Grunt 4 | . 2 . . 2 . Best Kill Streak 3 | 1 2 . . 3 . Combat Bots Only 3 | . 2 . . 3 . Max Kills in Single Turn 1 | 1 1 . . 1 . Gunslinging . | . . . . . . Exploded 1 | . 1 . . . . Melee 1 | . . . . 1 . Uniques/NPCs Destroyed . | . . . . . . Combat | -11 -10 -10 -9 -6 -6 -------- Run | Yrd Mat Sub Scr Fac Low Hostile Shots Fired 127 | . 10 . . 56 61 Missed 31 | . 2 . . 8 21 Hits 96 | . 8 . . 48 40 Projectile 96 | . 8 . . 48 40 Critical Strikes 4 | . 1 . . 2 1 Damage Taken 1718 | . 114 . . 828 776 Core 851 | . . . . 230 621 Absorbed by Shields . | . . . . . . Redirected to Shielding 81 | . . . . 81 . Core Remaining (%) 100 | 100 . . 100 . . Volleys Fired 7 | 2 5 . . . . Largest 2 | 2 2 . . . . Hottest 80 | 80 80 . . . . Shots Fired 14 | 4 10 . . . . Gun 14 | 4 10 . . . . Cannon . | . . . . . . Launcher . | . . . . . . Special . | . . . . . . Kinetic . | . . . . . . Thermal . | . . . . . . Explosive . | . . . . . . Electromagnetic 14 | 4 10 . . . . Robot Hit Streak 3 | 3 3 . . . . Robot Miss Streak 1 | . 1 . . . . Penetration Max . | . . . . . . Secondary Targets . | . . . . . . Shots Hit Robots 32 | 3 6 . . 23 . Core Hits 16 | 1 3 . . 12 . Critical Kills . | . . . . . . Critical Parts Destroyed . | . . . . . . Critical Strikes 1 | 1 . . . . . Corrupt 1 | 1 . . . . . Melee Attacks 44 | . . . . 44 . Impact . | . . . . . . Slashing 44 | . . . . 44 . Piercing . | . . . . . . Sneak Attacks 4 | . . . . 4 . Combat Hostiles . | . . . . . . Follow-up Attacks 1 | . . . . 1 . Damage Inflicted 1233 | 43 116 . . 1067 7 Guns 124 | 43 81 . . . . Cannons . | . . . . . . Explosions 35 | . 35 . . . . Melee 1067 | . . . . 1067 . Ramming 7 | . . . . . 7 Kinetic . | . . . . . . Thermal 35 | . 35 . . . . Explosive . | . . . . . . Electromagnetic 124 | 43 81 . . . . Impact . | . . . . . . Slashing 1067 | . . . . 1067 . Piercing . | . . . . . . Highest Corruption . | . . . . . . Average Corruption . | . . . . . . Corruption Purged . | . . . . . . Corruption Blocked . | . . . . . . Overload Shots . | . . . . . . Overflow Damage 115 | . . . . 115 . Projectiles . | . . . . . . Explosions . | . . . . . . Melee 115 | . . . . 115 . Knockbacks . | . . . . . . Impact . | . . . . . . Kinetic . | . . . . . . Secondary . | . . . . . . Self-Inflicted Damage 3 | . . . . . 3 Shots . | . . . . . . Rammed 2 | . . . . . 2 Targets Rammed 2 | . . . . . 2 Kicked . | . . . . . . Crushed . | . . . . . . Highest Temperature 168 | 36 168 . . . . Average Temperature 72 | 20 88 . . . . Received Heat Transfer 690 | . 87 . . 288 315 Siege Activations . | . . . . . . Martial Activations . | . . . . . . Shielding Activations . | . . . . . . Robots Disrupted . | . . . . . . Combat Hostiles . | . . . . . . Robots Corrupted . | . . . . . . Combat Hostiles . | . . . . . . Parts Fried . | . . . . . . Impact Corruptions . | . . . . . . Robots Melted . | . . . . . . Combat Hostiles . | . . . . . . Parts Melted . | . . . . . . Heat Transferred 100 | . 100 . . . . Parts Sabotaged . | . . . . . . Parts Stolen . | . . . . . . Parts Stripped . | . . . . . . Power Chain Reactions 1 | . 1 . . . . Alert | -11 -10 -10 -9 -6 -6 ------- Run | Yrd Mat Sub Scr Fac Low Maximum Alert Level . | . . . . . . Low Security (%) 100 | 100 100 . . 100 . Level 1 . | . . . . . . Level 2 . | . . . . . . Level 3 . | . . . . . . Level 4 . | . . . . . . Level 5 . | . . . . . . High Security . | . . . . . . Max Security . | . . . . . . Peak Influence 55 | 5 41 . . 55 . Initial . | . . . . . . Average 7 | . 6 . . 9 . Influence Increases 510 | 5 51 . . 214 240 Destroy 0b10 Robot/C 160 | . 40 . . 120 . Destroy 0b10 Robot/NC 25 | 5 . . . 20 . Destroy Leader 34 | . 10 . . 24 . Disable Machine 30 | . . . . 30 . Destroy Structure 6 | . 1 . . 5 . Lose Combat Pursuer 255 | . . . . 15 240 Influence Decreases 380 | 5 51 . . 175 149 Entered New Map 15 | . . . . . 15 Time Decay 275 | 5 51 . . 115 104 Lost Part 90 | . . . . 60 30 Squads Dispatched 1 | . . . . 1 . Investigation . | . . . . . . Extermination . | . . . . . . Reinforcement 1 | . . . . 1 . Assault . | . . . . . . Garrison . | . . . . . . Intercept . | . . . . . . Searches Triggered . | . . . . . . Construction Impeded 1 | . . . . 1 . Haulers Reinforced . | . . . . . . Active Scanning Responses . | . . . . . . Cargo Convoy Interrupts . | . . . . . . Stealth | -11 -10 -10 -9 -6 -6 --------- Run | Yrd Mat Sub Scr Fac Low Distress Signals 3 | . 2 . . 1 . Communications Jammed . | . . . . . . Distress Signals . | . . . . . . Times Spotted 37 | . 3 . . 14 20 Peak Tracking Total 8 | . 4 . . 7 8 Tactical Retreats 6 | . . . . 1 5 Traps | -11 -10 -10 -9 -6 -6 ------- Run | Yrd Mat Sub Scr Fac Low Traps Triggered 2 | . . . . 2 . Indirectly . | . . . . . . Trap Hack Attempts . | . . . . . . Triggered . | . . . . . . Disarmed . | . . . . . . Reprogrammed . | . . . . . . Reused . | . . . . . . Traps Extracted . | . . . . . . Installed . | . . . . . . Triggered . | . . . . . . Machines | -11 -10 -10 -9 -6 -6 ---------- Run | Yrd Mat Sub Scr Fac Low Machines Disabled 3 | . 1 . . 2 . Max in Single Turn 1 | . 1 . . 1 . Garrison Access 1 | . . . . 1 . Machines Repaired . | . . . . . . Machines Dismantled . | . . . . . . Machines Sabotaged . | . . . . . . Overloaded Fab Kills . | . . . . . . Hacking | -11 -10 -10 -9 -6 -6 --------- Run | Yrd Mat Sub Scr Fac Low Machines Accessed 9 | . 1 . 6 2 . Terminals 2 | . 1 . . 1 . Fabricators . | . . . . . . Repair Stations . | . . . . . . Recycling Units . | . . . . . . Scanalyzers . | . . . . . . Garrison Access 1 | . . . . 1 . Total Hacks 34 | . 2 . 29 3 . Successful 31 | . 1 . 29 1 . Failed 3 | . 1 . . 2 . Catastrophic 1 | . . . . 1 . Database Lockouts . | . . . . . . Manual 4 | . 2 . . 2 . Terminals 4 | . 2 . . 2 . Fabricators . | . . . . . . Repair Stations . | . . . . . . Recycling Units . | . . . . . . Scanalyzers . | . . . . . . Garrison Access 1 | . . . . 1 . Terminal Hacks 29 | . . . 29 . . Record 28 | . . . 28 . . Open Door 1 | . . . 1 . . Fabricator Hacks . | . . . . . . Repair Station Hacks . | . . . . . . Recycling Unit Hacks . | . . . . . . Scanalyzer . | . . . . . . Garrison Access Hacks 1 | . . . . 1 . Seal Access 1 | . . . . 1 . Unauthorized Hacks 1 | . 1 . . . . Terminals 1 | . 1 . . . . Botnet 1 | . 1 . . . . Fabricators . | . . . . . . Repair Stations . | . . . . . . Recycling Units . | . . . . . . Scanalyzers . | . . . . . . Garrison Access . | . . . . . . Data Cores Recovered . | . . . . . . Used . | . . . . . . Hacking Detections 2 | . 1 . . 1 . Full Trace Events . | . . . . . . Feedback Events . | . . . . . . Feedback Blocked . | . . . . . . Robot Schematics Acquired . | . . . . . . Robots Built . | . . . . . . Authchips . | . . . . . . Time . | . . . . . . Total Robot Build Rating . | . . . . . . Part Schematics Acquired . | . . . . . . Parts Built . | . . . . . . Authchips . | . . . . . . Time . | . . . . . . Total Part Build Rating . | . . . . . . Part Studies Acquired . | . . . . . . Parts Repaired . | . . . . . . Time . | . . . . . . Parts Recycled . | . . . . . . Recycled Matter . | . . . . . . Retrieved Matter . | . . . . . . Retrieved Components . | . . . . . . Parts Scanalyzed . | . . . . . . Part Schematics Acquired . | . . . . . . Parts Damaged . | . . . . . . Bothacking | -11 -10 -10 -9 -6 -6 ------------ Run | Yrd Mat Sub Scr Fac Low Used RIF Installer . | . . . . . . Robots Hacked . | . . . . . . Non-combat . | . . . . . . Combat . | . . . . . . Robot Hacks Applied . | . . . . . . Relay Couplers Released . | . . . . . . Fabnet Peak Effective % . | . . . . . . Robots Rewired . | . . . . . . Allies Hacked . | . . . . . . Hacks Repelled . | . . . . . . Allies | -11 -10 -10 -9 -6 -6 -------- Run | Yrd Mat Sub Scr Fac Low Total Allies 1 | . . . . . 1 Largest Group 1 | . . . . . 1 Highest-Rated Group 165 | . . . . . 165 Highest-Rated Ally 165 | . . . . . 165 Initial UFD Resources 23 | . . . . 23 23 Total Orders . | . . . . . . Ally Attacks . | . . . . . . Total Damage . | . . . . . . Kills . | . . . . . . Allies Corrupted . | . . . . . . Allies Melted . | . . . . . . Intel | -11 -10 -10 -9 -6 -6 ------- Run | Yrd Mat Sub Scr Fac Low Active Infowar (turns) 13307 | 57 326 326 11811 718 69 Sensors 491 | . . . . 491 . Seismic 13161 | 57 326 326 11811 641 . Triangulation 285 | . . . . 216 69 Robot Analysis Total . | . . . . . . Derelict Logs Recovered 2 | . . 1 . . 1 Drone Launches . | . . . . . . Drone Recoveries . | . . . . . . Exploration | -11 -10 -10 -9 -6 -6 ------------- Run | Yrd Mat Sub Scr Fac Low Turns Passed 13527 | 115 326 326 11811 726 223 Spaces Moved 6494 | 66 180 175 5304 375 394 Core 312 | 5 . . . 2 305 Treads 2438 | 61 180 175 2022 . . Legs . | . . . . . . Wheels 3482 | . . . 3282 200 . Hover 262 | . . . . 173 89 Flight . | . . . . . . Fastest Speed 50 | 50 160 160 160 52 50 Average Speed 200 | 151 160 160 217 147 55 Slowest Speed 1500 | 160 160 160 320 1500 111 Overloaded Moves . | . . . . . . Propulsion Burnouts . | . . . . . . Robots Hopped . | . . . . . . Potential Cave-ins . | . . . . . . Cave-ins Triggered . | . . . . . . Exploration Rate (%) 33 | 4 33 13 94 9 45 Regions Visited 5 Branch Regions 3 Pre-discovered Areas . | . . . . . . Known Exits Taken 1 | . . . . 1 . Unknown Exits Taken 4 | 1 1 1 1 . . Scrap Searched 7 | . . . 7 . . Spaces Dug 5 | . . . . 5 . Terrain Destroyed 6 | . 1 . . 5 . Melee 5 | . . . . 5 . Projectile . | . . . . . . AOE 1 | . 1 . . . . Terrain Rammed . | . . . . . . Walls Destroyed . | . . . . . . Machines Disabled . | . . . . . . Actions | -11 -10 -10 -9 -6 -6 --------- Run | Yrd Mat Sub Scr Fac Low Total 6950 | 74 208 221 5565 484 398 Wait 337 | . 17 47 250 23 . Move 6489 | 65 179 174 5303 374 394 Hop . | . . . . . . Pick Up 20 | . 7 . 8 5 . Fast Attach 15 | 7 . . . 8 . Attach 9 | . . . . 9 . Detach 4 | . . . . 2 2 Swap 3 | . . . 2 1 . Drop 4 | . . . 1 3 . Fire 7 | 2 5 . . . . Melee 43 | . . . . 43 . Ram 2 | . . . . . 2 Kick . | . . . . . . Crush . | . . . . . . Escape Stasis 16 | . . . . 16 . Rewire 1 | . . . 1 . . Trap . | . . . . . . Miscellaneous . | . . . . . . Route ------- -11/Scrapyard -10/Materials (discovered 2 exits: [*Min] / [*Sub]) -10/Subcaves -9/Scraptown (discovered 2 exits: *Fac x2) -6/Factory (discovered 2 exits: *Fac / *Low) -6/Lower Caves History --------- Turn | Location | Event 7 | -11/Scrapyard | Discovered new exit (range 15) 116 | -11/Scrapyard | Entered Materials 117 | -10/Materials | Met a group of wandering Federalists 213 | -10/Materials | Discovered new exit (range 10) 252 | -10/Materials | Lost 5 allies 307 | -10/Materials | Build established: Mutant 335 | -10/Materials | Discovered new exit (range 8) 442 | -10/Materials | Entered Subcaves 443 | -10/Subcaves | Approached by a straggling Scientist 446 | -10/Subcaves | Learned Materials emergency access door positions 761 | -10/Subcaves | Scientist uncovered a shortcut to Scraptown 768 | -10/Subcaves | Entered Scraptown 1008 | -9/Scraptown | Discovered new exit (range 13) 1248 | -9/Scraptown | Visited Awakened 1306 | -9/Scraptown | Visited UFD Registry 1349 | -9/Scraptown | Visited Cave Peace 1410 | -9/Scraptown | Visited Bundlers 1476 | -9/Scraptown | Registered with UFD as "Electromachine" 1485 | -9/Scraptown | Heard Great Nut preacher, LISTEN AND RECITE! 1984 | -9/Scraptown | Visited A0-MCA Data Center 1997 | -9/Scraptown | Given a B rating by A0-MCA 2005 | -9/Scraptown | Found A0-MCA's Component Scanner 2041 | -9/Scraptown | Visited Derelict Rescue Squad 2085 | -9/Scraptown | Visited Infowarlord's Domain 2161 | -9/Scraptown | Visited Observation Area 2666 | -9/Scraptown | Visited Scrapoid Pod Storage 2717 | -9/Scraptown | Visited Scrapoid Research Area 3188 | -9/Scraptown | Visited Sword Containment 3821 | -9/Scraptown | Visited SPCMW 3985 | -9/Scraptown | Visited Red Mages 4855 | -9/Scraptown | Visited TADAMA 5706 | -9/Scraptown | Visited Assassins FH 6376 | -9/Scraptown | Discovered new exit (range 3) 9378 | -9/Scraptown | Visited LU-1G1's Boring Crew 9524 | -9/Scraptown | Found Prototype Slashing Weapon 11257 | -9/Scraptown | Visited Supply Room 12179 | -9/Scraptown | Met Optimus 12179 | -9/Scraptown | Accepted into 0bPrime 12579 | -9/Scraptown | Civil war broke out across Scraptown 12579 | -9/Scraptown | Entered Factory 12579 | -6/Factory | Evolved 8 slots: Propulsion x2, Utility x6 12620 | -6/Factory | Identified Companion Sword 13000 | -6/Factory | Discovered new exit (range 7) 13029 | -6/Factory | Identified exit to Factory 13077 | -6/Factory | Lost 5 parts (2p3n) 13259 | -6/Factory | Lost 4 parts (1p1n2u) 13285 | -6/Factory | Discovered new exit (range 14) 13303 | -6/Factory | Identified exit to Lower Caves 13305 | -6/Factory | Entered Lower Caves 13374 | -6/Lower Caves | Released all parts (6) 13419 | -6/Lower Caves | Encountered a Warlord checkpoint 13496 | -6/Lower Caves | Core integrity fell below 50% 13523 | -6/Lower Caves | Core integrity fell below 20% 13528 | -6/Lower Caves | Destroyed by G-67 Veteran with Plasma Rifle Last Messages --------------- 13328_ Acquired derelict log, extracted data. Data stored: Upper Caves entrances (x1). 13328_ Imp. Hover Unit destroyed. Companion Sword: "My slot!" 13370_ Imp. Hover Unit destroyed. 13373_ Imp. Gravmag System destroyed. 13374_ Released Lgt. Deuterium Engine. 13374_ Released Imp. Signal Interpreter. 13374_ Released Sml. Storage Unit. 13374_ Released Triangulator. 13374_ Released A0-MCA's Component Scanner. 13374_ Released Imp. Actuator Array. 13419_ ZS-D55(M): "You haven't seen any Assembled, have you?" 13439_ 81-LBG(S) destroyed. 13469_ G-50 Soldier suffers critical hit (Burn). 13480_ TI-T2C(k) suffers critical hit (Burn). 13480_ TI-T2C(k) destroyed. 13491_ Critical hit (Burn: +37). 13492_ Slammed into G-50 Soldier. A strange signal echoes through the caves. Map ----- +----------------------------------------------------+ | ?????????????????????????????????????????????????# | | ?????????????????????????????????????????????????? | | ?????????????????????????????????????????????????? | | ?????????????????????????????????????????????????? | | ?????????????????????????????????????????????????? | | ?????????????????????????????????????????###??###? | | ???????????????????????????????????????### ### ## | | ??????????????????????????????????????## # | | ??????????????????????????????????????# | | ??????????????????????????????????????####### | | ????????????????????????????????????????????# | | ????????????????????????????????????????????# | | ??????????????????#??????????#######????????# | | ?????????????????? ?????????#" "" #????????## | | ?????????????????? ?????????# """ #????????## | | ??????????????????? ????????# "" "###??????# | | ??????????????????? ?????????# # ##?????## | | ???????????????????? ???????## # #?###??## / | | ????????????????????? ???????# ### ##??# % | | ????????????????????? ?????## # #?## | | ?????????????????????? ?????# ## ## ###%= | | ?????????????????###??# ????# ### ## | | ????????????## ### ## ???## ### g | | ????????????# ?## g g #### | | ?????????????????# g## * g ##??## # | | ??????????????????# @ % ###????#### | | ??????????????????# ## ####?????????? | | ??????????????????# #########????????????? | | ??????????????????# ##????????????????????? | | ?????????????????# ########?????????????????????? | | ????????????????# ??????????????????????????????? | | ????????????????# ???????????????????????????????? | | ?????????????????????????????????????????????????? | | ?????????????????????????????????????????????????? | | ?????????????????????????????????????????????????? | | ?????????????????????????????????????????????????? | | ?????????????????????????????????????????????????? | | ?????????????????????????????????????????????????? | | ?????????????????????????????????????????????????? | | ?????????????????????????????????????????????????? | | ?????????????????????????????????????????????????? | | ?????????????????????????????????????????????????? | | ?????????????????????????????????????????????????? | | ?????????????????????????????????????????????????? | | ?????????????????????????????????????????????????? | | ?????????????????????????????????????????????????? | | ?????????????????????????????????????????????????? | | ?????????????????????????????????????????????????? | | | | | +----------------------------------------------------+ Best States ------------- Heat Dissipation 37 Energy Generation 18 Energy Capacity 160 Matter Stores 300 Matter Capacity 300 Sight Range 16 Robot Scan Range 15 Terrain Scan Density 10 Utility Shielding 66 Weapon Shielding 33 Evasion (%) 54 Recoil Reduction 2 Item Schematics ----------------- None Robot Schematics ------------------ None Fabricated ------------ Nothing Repaired ---------- Nothing Studied --------- None Alien Tech Used ----------------- None Achievements -------------- Nice Directions, Buddy Challenges ------------ None Game ------ Seed TeleporterCoordinationLink Manual? 0 Play Time 00:51:44 Cumulative 171.4 hours Start 2026.08.02 @ 16:21:42 End 2026.08.02 @ 19:51:27 Sessions 3 Manual Loads 0 Difficulty Rogue Special Mode None Game No. 185 Rogue 185 Adventurer 0 Explorer 0 Win Type - Total 0 Types 0/0/0/0/0/0/0/0/0/0 Lore% 58 Gallery% 46 Achievement% 33 Wizard Run 0 Options --------- Layout 0 ASCII 0 Keyboard 0 Movement Arrows Keybinds 0 Fullscreen 0 Font 16/SmallcapsGlow Map View 76x50 Zoom Use 3% Tactical HUD 1 Map Filters NONE Filters NONE Steam 1 RUN: ef257b5c-f6ed-450a-952a-537d659066d0